bitfinex/quotes_ETHUSD_20241009
["timestamp","ask_amount","ask_price","bid_price","bid_amount"]
[1728508141293,4.2302,2364.0,2363.9,0.55]
[1728508142178,4.2302,2364.0,2363.8,0.55]
[1728508143502,4.2302,2364.0,2363.8,0.7595088]
[1728508143706,4.2302,2364.0,2363.8,1.14391986]
[1728508143911,8.46041,2364.0,2363.8,1.14391986]
[1728508144107,4.22994,2364.1,2363.8,1.14391986]
[1728508144520,4.23014,2364.0,2363.8,1.14391986]
[1728508146376,4.23029,2363.9,2363.8,0.7595088]
[1728508146574,4.23101,2363.5,2363.4,1.6278]
[1728508146778,4.23101,2363.5,2363.3,3.0]
[1728508146779,4.23119,2363.4,2363.3,3.0]
[1728508147078,4.23101,2363.5,2363.1,1.5528]
[1728508147079,4.23139,2363.3,2363.1,1.5528]
[1728508147411,0.08219961,2363.2,2362.9,4.58314122]
[1728508147621,4.23116,2363.5,2363.0,0.08462581]
[1728508147918,4.23112,2363.5,2363.0,0.08462581]
[1728508148122,4.23127,2363.4,2363.0,0.08462581]
[1728508148411,4.31346961,2363.4,2363.0,3.08462581]
[1728508148975,4.31346961,2363.4,2363.1,0.55]
[1728508149477,4.31346961,2363.4,2363.1,0.75736799]
[1728508149677,0.08219961,2363.4,2363.1,0.75736799]
[1728508149877,4.23137,2363.3,2363.1,0.75736799]
[1728508150115,0.08209284,2363.2,2363.1,0.75736799]
[1728508150484,4.31364284,2363.2,2363.1,0.75736799]
[1728508151632,0.08209284,2363.2,2363.1,0.75736799]
[1728508151947,4.23137,2363.3,2363.1,0.75736799]
[1728508152149,0.08209284,2363.2,2363.1,0.75736799]
[1728508152310,4.23137,2363.3,2363.1,0.75736799]
[1728508152516,1.5695,2363.6,2363.0,0.55]
[1728508152517,0.08209284,2363.2,2363.0,0.55]
[1728508152826,4.23137,2363.3,2363.0,0.55]
[1728508153026,0.08181824,2363.1,2363.0,0.55]
[1728508153224,4.23137,2363.3,2363.0,0.55]
[1728508153758,0.08181824,2363.2,2363.0,0.55]
[1728508154048,4.23137,2363.3,2363.0,0.55]
[1728508154557,0.08181824,2363.2,2363.0,0.55]
[1728508154874,4.23137,2363.3,2363.0,0.55]
[1728508155052,0.08181824,2363.1,2363.0,0.55]
[1728508155249,4.23137,2363.3,2363.0,0.55]
[1728508155408,0.08181824,2363.1,2363.0,0.75986382]
[1728508155607,8.46291,2363.3,2363.0,0.75986382]
[1728508155851,0.08181824,2363.1,2363.0,0.75986382]
[1728508156045,4.23137,2363.3,2363.0,0.75986382]
[1728508156256,0.08181824,2363.1,2363.0,0.75986382]
[1728508156429,4.23137,2363.3,2363.0,0.75986382]
[1728508156624,0.08181824,2363.1,2363.0,0.75986382]
[1728508156836,4.23137,2363.3,2363.0,0.75986382]
[1728508157041,0.08181824,2363.1,2363.0,0.75986382]
[1728508157228,4.23137,2363.3,2363.0,0.75986382]
[1728508157441,0.08181824,2363.1,2363.0,0.75986382]
[1728508157641,4.23137,2363.3,2363.0,0.75986382]
[1728508157837,0.08181824,2363.1,2363.0,0.75986382]
[1728508158056,4.23162,2363.2,2363.0,0.75986382]
[1728508158258,0.08181824,2363.1,2363.0,0.75986382]
[1728508158968,4.23137,2363.3,2363.0,0.75986382]
[1728508159172,0.08178263,2363.1,2363.0,0.75986382]
[1728508159341,4.23137,2363.3,2363.0,1.29416432]
[1728508159654,0.08178263,2363.1,2363.0,1.29416432]
[1728508159862,4.23137,2363.3,2363.0,1.29416432]
[1728508160154,4.23157,2363.2,2363.0,0.75986382]
[1728508160361,4.31333229,2363.2,2363.0,0.75986382]
[1728508160548,0.08176229,2363.2,2363.0,0.75986382]
[1728508160730,4.23137,2363.3,2363.0,0.75986382]
[1728508160939,0.08176229,2363.1,2363.0,0.75986382]
[1728508161268,4.23137,2363.3,2363.0,1.29416432]
[1728508161563,4.23137,2363.3,2363.0,0.75986382]
[1728508161725,0.08176229,2363.2,2363.0,0.75986382]
[1728508161927,4.23156,2363.2,2363.0,0.75986382]
[1728508162161,0.08176229,2363.1,2363.0,0.75986382]
[1728508162773,4.23166,2363.2,2363.0,0.75986382]
[1728508162973,0.08176229,2363.1,2363.0,0.75986382]
[1728508166778,4.23138,2363.3,2363.0,0.75986382]
[1728508166982,0.08167074,2363.1,2363.0,0.75986382]
[1728508167162,4.23138,2363.3,2363.0,0.75986382]
[1728508167362,0.08167074,2363.1,2363.0,0.75986382]
[1728508167548,5.80037,2363.6,2363.1,1.5708]
[1728508167761,1.5901,2364.2,2363.4,1.5708]
[1728508168079,1.5901,2364.2,2363.7,0.55]
[1728508168080,4.23047,2363.8,2363.7,0.55]
[1728508168586,4.23022,2364.0,2363.7,0.55]
[1728508168587,4.23031,2363.9,2363.7,0.55]
[1728508168748,4.23014,2364.0,2363.7,0.55]
[1728508168945,4.23032,2363.9,2363.7,1.37177478]
[1728508170540,4.23014,2364.0,2363.7,1.37177478]
[1728508170745,4.22958,2364.3,2363.9,3.55]
[1728508171058,4.23011,2364.0,2363.9,3.55]
[1728508171273,4.23011,2364.0,2363.9,4.4454916]
[1728508171479,4.22989,2364.2,2363.9,4.4454916]
[1728508171788,4.22989,2364.2,2363.9,4.53008678]
[1728508171955,4.22988,2364.2,2363.9,4.53008678]
[1728508172154,4.22988,2364.2,2364.1,0.55]
[1728508172362,4.23023,2364.0,2363.9,0.55]
[1728508172574,8.46046,2364.0,2363.9,0.55]
[1728508172946,4.23023,2364.0,2363.9,0.55]
[1728508176909,5.84763,2364.0,2363.9,0.55]
[1728508177612,4.23023,2364.0,2363.9,0.55]
[1728508180289,4.23101,2363.6,2363.3,3.08461149]
[1728508180489,4.23129,2363.4,2363.2,0.08461683]
[1728508180702,4.23129,2363.4,2363.3,0.20784094]
[1728508181239,0.08238264,2363.4,2363.3,4.87560465]
[1728508181641,1.6543,2364.1,2363.3,0.20784094]
[1728508181798,8.46193,2363.6,2363.4,0.55]
[1728508182310,4.23101,2363.5,2363.4,0.55]
[1728508182517,4.31326554,2363.5,2363.4,0.55]
[1728508184703,0.08225554,2363.5,2363.4,0.55]
[1728508185120,0.08225554,2363.5,2363.4,3.55]
[1728508185448,5.75432,2364.1,2363.6,0.55]
[1728508185449,4.23038,2363.9,2363.6,0.55]
[1728508185746,4.23038,2363.9,2363.6,3.63460601]
[1728508185948,4.23059,2363.8,2363.6,0.63460601]
[1728508186243,4.23038,2363.9,2363.6,0.63460601]
[1728508186451,5.75427,2364.1,2363.6,0.63460601]
[1728508186749,8.46073,2363.9,2363.6,2.11881183]
[1728508187042,4.2303,2363.9,2363.6,2.11881183]
[1728508187200,5.75438,2364.1,2363.6,2.11881183]
[1728508187400,4.2303,2363.9,2363.6,2.11881183]
[1728508188941,4.22978,2364.2,2363.7,4.58314122]
[1728508189142,4.22978,2364.2,2363.8,3.63459556]
[1728508190349,4.23012,2364.0,2363.8,3.55]
[1728508190548,4.23012,2364.0,2363.8,0.55]
[1728508195275,0.08250973,2363.9,2363.8,0.55]
[1728508195446,4.31279973,2363.9,2363.8,0.55]
[1728508195649,0.08250973,2363.9,2363.8,0.55]
[1728508195983,0.08250973,2363.9,2363.6,1.48420582]
[1728508195984,4.31279973,2363.9,2363.5,3.0]
[1728508196290,0.08250973,2363.9,2363.5,7.31560107]
[1728508196493,0.08250973,2363.9,2363.6,1.77158423]
[1728508196689,0.08250973,2363.9,2363.6,1.85619026]
[1728508197051,4.31280973,2363.9,2363.6,1.85619026]
[1728508197369,0.08250973,2363.9,2363.7,0.55]
[1728508197565,0.08250973,2363.9,2363.8,7.78047]
[1728508197766,4.22978,2364.2,2363.8,3.63459562]
[1728508198088,4.22978,2364.2,2363.9,0.55]
[1728508198700,5.80284,2364.3,2363.9,0.55]
[1728508198995,4.23008,2364.1,2363.9,0.55]
[1728508199168,4.23011,2364.0,2363.9,0.55]
[1728508200757,4.23008,2364.1,2363.9,0.55]
[1728508200955,4.23007,2364.1,2363.9,0.55]
[1728508201155,4.23011,2364.0,2363.9,0.55]
[1728508204009,4.23011,2364.0,2363.9,0.75685973]
[1728508204515,4.23007,2364.1,2363.9,0.75685973]
[1728508204680,5.88496,2364.6,2364.2,3.55]
[1728508204866,5.88496,2364.6,2364.4,0.55]
[1728508204867,4.22914,2364.6,2364.4,0.55]
[1728508205067,4.22914,2364.6,2364.0,3.0]
[1728508205068,4.22976,2364.2,2364.0,3.0]
[1728508205269,4.22976,2364.2,2364.1,0.55]
[1728508205569,4.22961,2364.3,2364.0,0.55]
[1728508206074,4.22993,2364.1,2364.0,0.55]
[1728508206495,4.23001,2364.1,2363.9,0.20685973]
[1728508207717,4.23001,2364.1,2364.0,0.55]
[1728508207919,4.22967,2364.3,2364.0,0.55]
[1728508208083,4.22941,2364.4,2364.0,1.01027936]
[1728508208485,5.89408,2364.5,2364.0,1.01027936]
[1728508208486,4.22958,2364.3,2364.0,1.01027936]
[1728508208693,4.22958,2364.3,2364.0,0.63459339]
[1728508209215,4.22958,2364.3,2364.0,0.55]
[1728508209413,4.22978,2364.2,2364.0,0.55]
[1728508209599,4.22993,2364.1,2364.0,0.55]
[1728508209806,4.22984,2364.2,2363.9,0.20685973]
[1728508209988,8.45973,2364.2,2363.9,0.20685973]
[1728508210184,0.08070893,2364.1,2363.9,0.20685973]
[1728508210589,0.08070893,2364.1,2364.0,0.55]
[1728508210917,4.22952,2364.4,2364.0,0.55]
[1728508210918,4.22959,2364.3,2364.0,0.55]
[1728508211124,0.08070893,2364.1,2364.0,0.55]
[1728508211531,4.22971,2364.3,2364.0,0.55]
[1728508211686,4.31063893,2364.1,2364.0,0.55]
[1728508211891,4.22993,2364.1,2364.0,0.55]
[1728508212131,4.31063893,2364.1,2364.0,0.55]
[1728508213336,0.08070893,2364.1,2364.0,0.55]
[1728508213489,0.08070893,2364.1,2364.0,0.92568597]
[1728508213689,0.08070893,2364.1,2364.0,5.15579597]
[1728508213929,4.22953,2364.4,2364.0,5.24038941]
[1728508214301,0.08070893,2364.3,2364.0,1.01027941]
[1728508214831,4.22989,2364.2,2364.0,0.92568597]
[1728508214986,4.31048421,2364.2,2364.0,0.55]
[1728508215188,4.22993,2364.1,2364.0,0.55]
[1728508215419,4.31048421,2364.2,2364.0,0.55]
[1728508215620,0.0807293,2364.1,2364.0,0.55]
[1728508215788,4.3106593,2364.1,2364.0,0.55]
[1728508217686,0.0807293,2364.1,2364.0,0.55]
[1728508220345,4.3106593,2364.1,2364.0,0.55]
[1728508220495,4.23011,2364.0,2363.9,0.75685973]
[1728508220692,5.56723325,2364.1,2363.9,0.75685973]
[1728508220895,0.08070383,2364.0,2363.9,0.75685973]
[1728508221241,4.31081383,2364.0,2363.9,0.75685973]
[1728508221395,5.84781383,2364.0,2363.9,0.75685973]
[1728508222241,0.08070383,2364.0,2363.9,1.29085983]
[1728508222442,1.537,2364.7,2364.0,8.13314122]
[1728508222621,5.766,2364.7,2364.3,0.55]
[1728508223445,0.44162883,2364.9,2364.6,0.55]
[1728508223646,4.22806,2365.2,2364.7,0.63456762]
[1728508223794,4.22806,2365.2,2364.9,0.55]
[1728508224248,4.22823,2365.1,2364.9,0.55]
[1728508224397,4.22832,2365.0,2364.8,0.55]
[1728508224592,8.25340024,2365.1,2364.7,0.55]
[1728508224593,4.2285,2364.9,2364.7,0.55]
[1728508224819,4.22878,2364.8,2364.7,0.55]
[1728508225131,4.2285,2364.9,2364.6,0.20936387]
[1728508225317,0.08063764,2364.8,2364.6,0.20936387]
[1728508226106,0.08063764,2364.8,2364.7,0.55]
[1728508226639,0.08063764,2364.8,2364.6,0.20936387]
[1728508227604,4.30941764,2364.8,2364.6,0.20936387]
[1728508227828,4.22886,2364.7,2364.6,0.20936387]
[1728508228033,5.74938,2364.8,2364.6,0.20936387]
[1728508228213,0.08063764,2364.7,2364.6,0.20936387]
[1728508228539,4.22886,2364.7,2364.6,0.20936387]
[1728508228741,4.30949764,2364.7,2364.6,0.20936387]
[1728508229144,0.08063764,2364.7,2364.6,0.20936387]
[1728508229648,1.6122,2365.7,2365.2,4.22794]
[1728508229951,4.22734,2365.6,2365.1,9.00603]
[1728508230104,4.22734,2365.6,2365.1,1.45905813]
[1728508230105,8.25251024,2365.6,2365.1,1.45905813]
[1728508230310,12.47989024,2365.6,2365.1,4.22814]
[1728508230512,8.25251024,2365.6,2365.2,0.55]
[1728508230746,4.22747,2365.5,2365.2,0.55]
[1728508230907,4.02517024,2365.6,2365.0,3.0]
[1728508231106,4.02517024,2365.6,2364.9,0.55]
[1728508231344,4.02517024,2365.6,2365.1,0.55]
[1728508231603,4.22748,2365.5,2365.1,0.55]
[1728508233156,0.1185462,2365.8,2365.3,5.77941]
[1728508233312,0.1185462,2365.8,2365.4,0.55]
[1728508233313,4.22735,2365.6,2365.4,0.55]
[1728508233505,4.22735,2365.6,2365.4,0.21666503]
[1728508233809,4.22743,2365.5,2365.4,0.21666503]
[1728508236754,9.86472024,2365.6,2365.4,0.21666503]
[1728508236960,14.09208024,2365.6,2365.4,0.21666503]
[1728508238324,14.09207024,2365.6,2365.4,0.21666503]
[1728508239054,0.1185462,2365.8,2365.4,0.21666503]
[1728508239055,4.3455862,2365.8,2365.4,0.21666503]
[1728508239213,4.3455862,2365.8,2365.4,0.7245559]
[1728508239753,4.3455862,2365.8,2365.6,4.22717]
[1728508239754,0.1185462,2365.8,2365.6,4.22717]
[1728508240060,0.1185462,2365.8,2365.7,13.99591122]
[1728508240719,0.1185462,2365.8,2365.7,24.55829946]
[1728508240915,0.1185462,2365.8,2365.7,28.66094772]
[1728508241374,0.1185462,2365.8,2365.7,24.63577748]
[1728508241572,0.1185462,2365.8,2365.7,22.95230948]
[1728508242251,0.1185462,2365.8,2365.7,26.97747972]
[1728508242644,0.1185462,2365.8,2365.7,22.95230948]
[1728508244184,0.1185462,2365.8,2365.7,61.97747972]
[1728508247980,0.1185462,2365.8,2365.7,62.40157972]
[1728508249193,0.1185462,2365.8,2365.7,27.40157972]
[1728508249688,0.1185462,2365.8,2365.7,23.37640948]
[1728508250460,0.1185462,2365.8,2365.7,23.37580948]
[1728508250788,0.1185462,2365.8,2365.7,14.54855948]
[1728508251010,0.1185462,2365.8,2365.7,10.44591122]
[1728508251288,0.1185462,2365.8,2365.7,37.55417442]
[1728508251856,0.1185462,2365.8,2365.7,40.55417442]
[1728508252053,0.1185462,2365.8,2365.7,41.10417442]
[1728508253876,0.1185462,2365.8,2365.7,40.09130842]
[1728508254080,0.1185462,2365.8,2365.7,20.76281068]
[1728508255578,0.1185462,2365.8,2365.7,21.31281068]
[1728508256081,1.6095,2366.9,2366.7,0.55]
[1728508256769,1.6095,2366.9,2366.6,0.55]
[1728508256968,4.22476,2367.0,2366.8,0.55]
[1728508257152,0.44141715,2367.1,2366.9,4.22481]
[1728508257353,0.44141715,2367.1,2367.0,0.55]
[1728508259190,6.27556715,2367.1,2366.9,0.55]
[1728508259559,2.05091715,2367.1,2366.9,0.55]
[1728508259760,0.44141715,2367.1,2366.9,1.50320678]
[1728508260491,0.12548868,2367.0,2366.9,1.50320678]
[1728508260693,0.12548868,2367.0,2366.9,8.81262939]
[1728508260864,0.12548868,2367.0,2366.9,8.72813678]
[1728508261054,0.12548868,2367.0,2366.9,10.36813678]
[1728508261256,0.12548868,2367.0,2366.9,13.99521232]
[1728508261656,0.12548868,2367.0,2366.9,15.17496846]
[1728508263270,0.12548868,2367.0,2366.9,50.17496846]
[1728508264655,1.5006,2368.1,2367.6,0.55]
[1728508264800,1.5006,2368.1,2367.8,3.55]
[1728508264992,5.72348,2368.1,2367.8,3.55]
[1728508266132,5.72348,2368.1,2367.8,0.55]
[1728508266133,4.22315,2367.9,2367.8,0.55]
[1728508266338,4.22315,2367.9,2367.7,0.55]
[1728508266508,4.22315,2367.9,2367.6,0.55]
[1728508266703,4.22337,2367.8,2367.6,0.55]
[1728508266910,5.54037024,2367.7,2367.0,6.15184122]
[1728508267095,5.54037024,2367.7,2367.0,4.58314122]
[1728508267096,4.22406,2367.4,2367.0,4.58314122]
[1728508267299,0.844652,2367.8,2367.1,0.21326934]
[1728508267300,1.5152,2367.3,2367.1,0.21326934]
[1728508267491,4.22456,2367.2,2367.1,0.21326934]
[1728508268696,1.5152,2366.9,2366.3,6.15184122]
[1728508268896,1.5152,2366.9,2366.3,7.2383324]
[1728508268897,5.74023,2366.9,2366.3,7.2383324]
[1728508269097,4.2256,2366.6,2366.3,5.6696324]
[1728508269547,4.22532,2366.7,2366.3,5.6696324]
[1728508269839,4.22556,2366.6,2366.5,0.21667336]
[1728508270039,4.22616,2366.3,2365.8,4.22678]
[1728508270197,5.87806,2366.3,2365.8,5.68055512]
[1728508270396,1.6519,2366.3,2365.8,5.68055512]
[1728508270596,1.6519,2366.3,2366.0,4.22651]
[1728508270847,1.6519,2366.3,2365.9,4.8561282]
[1728508271005,1.6519,2366.3,2365.9,0.08452266]
[1728508271203,1.6519,2366.3,2366.2,0.21339619]
[1728508271752,2.96948053,2368.9,2366.8,4.22503]
[1728508271753,4.22397,2367.5,2366.8,4.22503]
[1728508271928,4.22397,2367.5,2366.9,3.50699252]
[1728508272132,4.22406,2367.4,2367.0,0.55]
[1728508272308,4.22422,2367.3,2367.0,0.55]
[1728508272507,1.6519,2367.2,2367.0,0.55]
[1728508272707,5.87639,2367.2,2367.0,0.55]
[1728508273247,5.87639,2367.2,2366.8,0.55]
[1728508273248,5.87632,2367.2,2366.8,0.55]
[1728508273447,5.87632,2367.2,2366.8,1.750062]
[1728508273618,5.87632,2367.2,2366.8,5.975132]
[1728508273619,1.6519,2367.2,2366.8,5.975132]
[1728508273941,5.87631,2367.2,2366.8,1.750062]
[1728508274135,5.87631,2367.2,2366.6,3.0]
[1728508274338,5.87631,2367.2,2366.7,0.55]
[1728508274538,5.87631,2367.2,2366.7,0.6344955]
[1728508274749,4.2246,2367.1,2366.7,0.6344955]
[1728508275052,5.87631,2367.2,2366.9,0.55]
[1728508275248,1.6519,2367.2,2366.9,4.77492]
[1728508275555,1.6519,2367.2,2366.9,0.55]
[1728508276246,4.22417,2367.4,2367.1,0.55]
[1728508276957,4.22417,2367.4,2367.1,0.76586476]
[1728508278958,4.22428,2367.3,2367.1,0.76586476]
[1728508279263,4.22417,2367.4,2367.1,0.76586476]
[1728508279561,4.2244,2367.2,2367.1,0.76586476]
[1728508279913,4.2244,2367.2,2367.1,0.21586476]
[1728508284176,1.5815,2367.5,2367.1,0.21586476]
[1728508284321,1.5815,2367.5,2367.2,0.55]
[1728508284663,4.22405,2367.4,2367.2,0.55]
[1728508285521,4.22422,2367.3,2367.1,0.21586476]
[1728508285720,4.2243,2367.3,2367.1,0.21586476]
[1728508286558,4.2244,2367.2,2367.1,0.21586476]
[1728508286860,4.22537,2366.7,2366.3,3.0]
[1728508287158,4.22537,2366.7,2366.2,4.64654103]
[1728508287159,4.22531,2366.7,2366.2,4.64654103]
[1728508287369,4.22564,2366.6,2366.2,6.11618213]
[1728508287578,4.02517024,2366.9,2365.9,4.58314122]
[1728508287579,4.22583,2366.4,2365.9,4.58314122]
[1728508287722,4.22583,2366.4,2366.0,0.20825225]
[1728508287723,8.25161024,2366.1,2366.0,0.20825225]
[1728508287918,4.22709,2365.7,2365.3,1.597]
[1728508288143,4.22709,2365.7,2365.3,2.72577644]
[1728508288534,8.25192024,2365.9,2365.3,2.72577644]
[1728508288535,8.25192024,2365.9,2365.3,1.12877644]
[1728508288733,8.25192024,2365.9,2365.3,5.35652644]
[1728508288948,4.22696,2365.8,2365.3,5.35652644]
[1728508289168,8.25192024,2365.9,2365.4,3.0]
[1728508289334,5.80429,2366.1,2365.7,0.55]
[1728508289725,4.22656,2366.0,2365.7,0.55]
[1728508289926,5.80429,2366.1,2365.7,0.55]
[1728508290125,5.80429,2366.1,2365.7,3.55]
[1728508290552,10.03082,2366.1,2365.7,3.55]
[1728508291170,4.22609,2366.3,2365.9,0.55]
[1728508291728,4.22622,2366.2,2365.9,3.55]
[1728508292077,4.22622,2366.2,2365.6,0.210917]
[1728508292078,4.22707,2365.7,2365.6,0.210917]
[1728508292373,4.22707,2365.7,2364.8,5.10834315]
[1728508292374,1.5403,2365.6,2364.7,4.58314122]
[1728508292673,4.22877,2364.8,2364.4,0.08457675]
[1728508292973,4.22877,2364.8,2364.7,0.20665825]
[1728508293125,4.22877,2364.8,2364.2,35.0]
[1728508293126,4.22958,2364.3,2364.2,35.0]
[1728508293326,4.02517024,2364.8,2364.2,0.21440238]
[1728508293327,8.25394024,2364.8,2364.2,0.21440238]
[1728508293565,8.25394024,2364.8,2364.2,4.52871835]
[1728508293566,4.22888,2364.7,2364.2,4.52871835]
[1728508294346,5.76864,2365.0,2364.4,4.22926]
[1728508294561,4.22868,2364.8,2364.5,0.5074999]
[1728508296769,4.22976,2364.2,2364.1,0.20651428]
[1728508297076,4.22958,2364.3,2364.1,0.20651428]
[1728508297278,4.22976,2364.2,2364.1,0.20651428]
[1728508297441,1.573,2364.4,2363.8,3.0]
[1728508297442,4.22994,2364.1,2363.8,3.0]
[1728508297637,4.2297,2364.3,2363.8,6.80634616]
[1728508297877,4.22969,2364.3,2363.8,6.8909512]
[1728508298314,4.22969,2364.3,2363.8,3.08460504]
[1728508298693,4.22997,2364.1,2363.8,0.761151]
[1728508299804,4.22966,2364.3,2363.8,0.761151]
[1728508300004,4.22976,2364.2,2363.8,3.761151]
[1728508300209,4.22999,2364.1,2363.9,35.0]
[1728508300888,4.32990688,2364.2,2363.9,35.0]
[1728508301571,4.23002,2364.1,2363.9,35.0]
[1728508301849,4.23115,2363.5,2363.1,4.58314122]
[1728508302057,5.78092,2363.9,2363.3,4.23136]
[1728508302058,5.78095,2363.9,2363.3,4.23136]
[1728508302215,5.78095,2363.9,2363.2,0.08462049]
[1728508302406,5.78095,2363.9,2363.2,4.10009549]
[1728508302657,4.23067,2363.7,2363.2,8.33146549]
[1728508302813,4.23067,2363.7,2363.2,8.246845]
[1728508303014,0.10005374,2363.8,2363.2,8.246845]
[1728508303348,4.23048,2363.8,2363.3,3.0]
[1728508303555,0.10005374,2363.6,2363.3,4.58299862]
[1728508304119,4.23048,2363.8,2363.3,4.58299862]
[1728508304450,0.10005374,2363.5,2363.3,4.58299862]
[1728508304659,4.23048,2363.8,2363.3,4.58299862]
[1728508304860,0.10005374,2363.7,2363.3,4.79338694]
[1728508305161,4.33071374,2363.7,2363.3,4.79338694]
[1728508306659,0.10005374,2363.7,2363.4,0.74283629]
[1728508306953,0.10005374,2363.7,2363.5,4.231]
[1728508307314,1.5506,2363.9,2363.5,4.231]
[1728508307510,1.5506,2363.9,2363.4,9.01215]
[1728508307714,0.09950008,2363.8,2363.4,9.01215]
[1728508307948,0.09950008,2363.8,2363.4,4.78106]
[1728508308158,0.09950008,2363.8,2363.6,3.0]
[1728508308949,0.0993034,2363.7,2363.6,3.0]
[1728508309458,4.23013,2364.0,2363.6,3.0]
[1728508309817,0.0993034,2363.9,2363.6,3.0]
[1728508311217,4.23047,2363.8,2363.6,3.0]
[1728508311411,0.0993034,2363.9,2363.6,6.90491448]
[1728508311643,4.23013,2364.0,2363.6,6.90491448]
[1728508311840,0.09936034,2363.7,2363.6,6.90491448]
[1728508312158,0.09936034,2363.9,2363.6,6.90491448]
[1728508312355,1.5928,2364.2,2363.6,6.90491448]
[1728508312556,1.5928,2364.2,2363.8,11.46063]
[1728508312862,4.2296,2364.3,2363.8,7.23031]
[1728508313071,4.2296,2364.3,2363.8,11.46068]
[1728508313366,4.2296,2364.3,2363.8,7.23031]
[1728508313541,4.2296,2364.3,2363.8,11.46068]
[1728508313853,4.2296,2364.3,2363.9,0.49914483]
[1728508314030,4.22949,2364.4,2363.9,4.72943483]
[1728508314433,8.45902,2364.4,2363.9,4.72943483]
[1728508314640,4.22949,2364.4,2363.9,0.49914483]
[1728508314819,4.22949,2364.4,2364.0,4.23009]
[1728508315213,4.22949,2364.4,2364.0,5.42604448]
[1728508315457,0.09612114,2364.3,2364.0,1.19595448]
[1728508315756,4.2297,2364.3,2363.9,0.49914483]
[1728508315930,0.09612114,2364.2,2364.1,0.2111295]
[1728508316317,4.22976,2364.2,2364.1,0.2111295]
[1728508316538,4.32588114,2364.2,2364.1,0.2111295]
[1728508316736,0.09612114,2364.2,2364.1,0.2111295]
[1728508316962,4.32588114,2364.2,2364.1,0.2111295]
[1728508317259,4.22976,2364.2,2364.1,0.2111295]
[1728508317462,0.09612114,2364.2,2364.1,0.2111295]
[1728508317819,4.22976,2364.2,2364.1,0.2111295]
[1728508318019,0.09612114,2364.2,2364.1,0.2111295]
[1728508318439,4.22967,2364.3,2364.1,0.2111295]
[1728508318625,0.09612114,2364.2,2364.1,0.2111295]
[1728508319033,4.22967,2364.3,2364.1,0.2111295]
[1728508319360,0.09612114,2364.2,2364.1,0.2111295]
[1728508319719,8.45939,2364.3,2364.1,0.2111295]
[1728508319915,0.09612114,2364.2,2364.1,0.2111295]
[1728508320121,8.45939,2364.3,2364.1,0.2111295]
[1728508320327,0.09612114,2364.2,2364.1,0.2111295]
[1728508320766,4.22967,2364.3,2364.1,0.2111295]
[1728508320931,0.09612114,2364.2,2364.1,0.2111295]
[1728508321440,14.93177711,2364.5,2364.1,0.2111295]
[1728508321644,0.09612114,2364.2,2364.1,0.2111295]
[1728508321845,10.70240711,2364.5,2364.1,0.2111295]
[1728508322029,1.5866,2364.1,2363.4,1.5545]
[1728508322227,4.23097,2363.6,2363.1,5.84242]
[1728508322472,4.23012,2364.0,2363.2,4.23151]
[1728508322473,4.02780665,2363.5,2363.2,4.23151]
[1728508322640,8.25858665,2363.7,2363.2,4.23151]
[1728508322844,4.23136,2363.4,2362.9,1.6107]
[1728508323029,4.02780665,2363.3,2363.1,0.21254832]
[1728508323572,0.0960848,2363.2,2363.1,0.21254832]
[1728508323933,8.25884665,2363.5,2363.1,0.21254832]
[1728508324144,0.0960848,2363.2,2363.1,4.44422832]
[1728508324487,5.81757,2363.6,2363.1,4.44422832]
[1728508324683,0.0960848,2363.2,2363.1,4.99422832]
[1728508324891,1.5866,2363.6,2363.2,4.23151]
[1728508325384,1.5739,2364.0,2363.5,0.55]
[1728508325551,4.22995,2364.1,2363.6,4.23072]
[1728508326436,1.5497,2364.5,2363.8,3.55]
[1728508326642,5.77903,2364.5,2363.9,0.55]
[1728508327079,4.22959,2364.3,2363.9,0.55]
[1728508327257,4.22978,2364.2,2363.6,7.23076]
[1728508327456,4.22994,2364.1,2363.7,0.21427814]
[1728508327834,4.22994,2364.1,2363.8,3.0]
[1728508327987,4.22994,2364.1,2363.7,3.21427814]
[1728508330144,0.0960848,2364.0,2363.7,3.21427814]
[1728508330485,4.23037,2363.9,2363.7,0.21427814]
[1728508330979,0.0960848,2363.8,2363.7,0.21427814]
[1728508332082,4.3266448,2363.8,2363.4,4.23105]
[1728508332274,4.23067,2363.7,2363.2,4.23144]
[1728508332460,4.23067,2363.7,2363.3,4.23127]
[1728508332661,4.23067,2363.7,2363.5,0.21055952]
[1728508332662,0.0960848,2363.6,2363.5,0.21055952]
[1728508333186,0.0960848,2363.6,2363.1,5.82126]
[1728508333390,4.23066,2363.7,2363.1,5.82126]
[1728508333391,4.23066,2363.7,2363.1,4.23166]
[1728508333597,0.0960848,2363.5,2363.4,1.5896]
[1728508333897,0.0960848,2363.5,2363.4,6.03586838]
[1728508334099,0.0960848,2363.5,2363.4,7.20463003]
[1728508334312,5.8593,2364.0,2363.5,4.23087]
[1728508334515,4.23041,2363.9,2363.4,0.21521838]
[1728508334808,4.23053,2363.8,2363.4,4.44636838]
[1728508334972,4.23053,2363.8,2363.4,0.21521838]
[1728508335366,4.23066,2363.7,2363.4,0.21521838]
[1728508336877,4.2304,2363.9,2363.4,0.21521838]
[1728508337201,0.58595,2363.9,2363.4,0.21521838]
[1728508337403,4.23157,2363.2,2362.8,2.47026315]
[1728508337564,4.23157,2363.2,2362.8,1.5905]
[1728508338162,5.74638,2363.3,2362.8,4.23215]
[1728508338376,5.74638,2363.3,2363.0,0.21257443]
[1728508338614,1.5992,2363.6,2363.0,1.08025287]
[1728508338910,1.5992,2363.9,2363.5,4.23091]
[1728508339134,8.46001,2364.1,2363.6,4.23082]
[1728508339312,4.23031,2363.9,2363.5,1.5395]
[1728508339635,4.23032,2363.9,2363.5,1.5395]
[1728508339929,4.23068,2363.7,2363.3,3.0]
[1728508342221,4.23063,2363.8,2363.3,7.23128]
[1728508342525,0.09580452,2363.7,2363.4,4.23118]
[1728508342862,4.23063,2363.8,2363.4,4.23118]